bitfinex/quotes_SOLUSD_20220212
["timestamp","ask_amount","ask_price","bid_price","bid_amount"]
[1644663178646,23.2556,94.808,94.715,2.63366791]
[1644663178847,23.2556,94.808,94.73,15.17]
[1644663179046,5.276,94.818,94.731,47.81210122]
[1644663179249,0.25,94.817,94.732,24.4603]
[1644663179648,24.9059,94.819,94.733,0.25]
[1644663180048,5.275,94.818,94.733,0.25]
[1644663180253,24.9059,94.819,94.733,0.25]
[1644663181049,0.25,94.818,94.733,0.25]
[1644663181249,5.525,94.818,94.733,0.25]
[1644663182349,0.25,94.818,94.734,5.275]
[1644663182552,5.525,94.818,94.733,0.25]
[1644663182750,0.25,94.818,94.734,5.275]
[1644663183250,0.25,94.818,94.735,0.25]
[1644663183651,0.25,94.818,94.736,5.275]
[1644663183853,0.25,94.818,94.74,15.17]
[1644663184255,0.25,94.818,94.741,0.25]
[1644663184455,0.25,94.818,94.742,5.275]
[1644663184854,0.25,94.818,94.743,0.25]
[1644663185752,0.25,94.818,94.741,2.38366791]
[1644663185753,0.25,94.842,94.742,0.25]
[1644663185953,5.274,94.841,94.742,0.25]
[1644663186353,0.25,94.84,94.742,0.25]
[1644663186554,5.274,94.839,94.742,0.25]
[1644663186758,0.25,94.838,94.742,0.25]
[1644663186955,5.274,94.837,94.742,0.25]
[1644663187358,0.25,94.836,94.742,0.25]
[1644663187659,0.25,94.836,94.743,5.274]
[1644663187858,0.25,94.836,94.743,7.65766791]
[1644663188058,0.25,94.836,94.744,25.17336791]
[1644663188257,0.25,94.836,94.745,5.274]
[1644663188460,0.25,94.843,94.76,15.17]
[1644663188657,0.25,94.843,94.761,37.86032616]
[1644663188861,5.274,94.842,94.761,37.86032616]
[1644663189059,0.25,94.843,94.761,37.86032616]
[1644663189261,0.25,94.843,94.761,61.25932616]
[1644663190358,5.274,94.842,94.761,61.25932616]
[1644663190759,0.25,94.841,94.761,61.25932616]
[1644663190959,5.274,94.84,94.761,61.25932616]
[1644663191161,0.25,94.841,94.762,0.25]
[1644663191360,0.25,94.839,94.762,0.25]
[1644663191560,22.6525,94.844,94.762,0.25]
[1644663191764,24.4812,94.849,94.763,2.38366791]
[1644663191965,24.4812,94.849,94.763,7.65666791]
[1644663192161,5.273,94.889,94.764,0.25]
[1644663192361,49.0828,94.892,94.77,189.64]
[1644663192560,49.0828,94.892,94.78,15.17]
[1644663192761,49.0828,94.892,94.781,91.09890955]
[1644663193162,49.0828,94.892,94.782,2.38366791]
[1644663193462,49.0828,94.892,94.783,5.272]
[1644663193661,49.0828,94.892,94.783,5.522]
[1644663193862,15.8239,94.89,94.784,2.38366791]
[1644663194062,15.8239,94.89,94.785,5.272]
[1644663194366,15.8239,94.89,94.786,2.38366791]
[1644663194562,0.25,94.889,94.8,15.17]
[1644663194762,49.0828,94.892,94.801,66.26860421]
[1644663194763,0.25,94.891,94.801,66.26860421]
[1644663196164,5.271,94.89,94.801,66.26860421]
[1644663196566,0.25,94.889,94.801,66.26860421]
[1644663196767,5.271,94.888,94.802,2.38366791]
[1644663197068,0.25,94.889,94.802,7.65466791]
[1644663197265,0.25,94.889,94.803,0.25]
[1644663197465,0.25,94.889,94.803,2.63366791]
[1644663197666,0.25,94.889,94.804,2.38366791]
[1644663197868,0.25,94.889,94.805,5.271]
[1644663198070,0.25,94.889,94.82,15.17]
[1644663198267,0.25,94.891,94.821,39.56902178]
[1644663198467,49.0828,94.892,94.821,39.56902178]
[1644663198669,15.8206,94.91,94.822,5.521]
[1644663198868,15.8206,94.91,94.822,32.18566791]
[1644663198869,24.3296,94.909,94.822,32.18566791]
[1644663199068,24.3296,94.909,94.822,29.802]
[1644663199268,24.3296,94.909,94.823,2.38366791]
[1644663199466,24.3296,94.909,94.824,5.269]
[1644663199670,24.3296,94.909,94.824,5.519]
[1644663199869,0.25,94.908,94.825,2.38366791]
[1644663200072,0.25,94.908,94.83,15.17]
[1644663200272,5.519,94.908,94.831,0.25]
[1644663201373,0.25,94.908,94.832,5.269]
[1644663201572,0.25,94.908,94.832,7.65266791]
[1644663201772,23.5746,94.928,94.833,2.63366791]
[1644663202071,23.3246,94.928,94.834,31.70196791]
[1644663202275,23.3246,94.928,94.835,0.25]
[1644663202473,23.3246,94.928,94.837,35.76333794]
[1644663202673,23.3246,94.928,94.85,15.17]
[1644663203073,23.3246,94.928,94.851,0.25]
[1644663203376,0.25,94.927,94.852,45.45971381]
[1644663203574,0.25,94.927,94.852,47.84338172]
[1644663203775,0.25,94.927,94.853,2.63366791]
[1644663204174,0.25,94.927,94.853,0.25]
[1644663207075,0.25,94.927,94.854,2.38366791]
[1644663207273,5.269,94.949,94.854,2.38366791]
[1644663207274,5.269,94.949,94.855,0.25]
[1644663207478,15.814,94.95,94.855,0.25]
[1644663207479,24.4664,94.948,94.86,15.17]
[1644663207874,24.4664,94.948,94.861,0.25]
[1644663208575,0.25,94.938,94.861,0.25]
[1644663208776,5.268,94.937,94.861,0.25]
[1644663209180,22.5063,94.936,94.861,0.25]
[1644663209479,5.268,94.935,94.861,0.25]
[1644663209983,0.25,94.934,94.861,0.25]
[1644663211482,0.25,94.934,94.86,15.17]
[1644663212785,0.25,94.935,94.86,15.17]
[1644663213285,0.25,94.935,94.861,0.25]
[1644663213484,5.518,94.935,94.861,0.25]
[1644663213887,5.518,94.935,94.86,15.17]
[1644663214093,5.518,94.935,94.852,45.45971381]
[1644663214492,2.22074816,94.934,94.83,15.17]
[1644663214690,5.519,94.933,94.81,15.17]
[1644663214990,2.22074816,94.932,94.81,15.17]
[1644663215193,2.22074816,94.932,94.81,17.55366791]
[1644663215194,5.519,94.931,94.81,17.55366791]
[1644663215390,5.519,94.931,94.811,40.13188483]
[1644663215789,15.8172,94.93,94.811,39.88188483]
[1644663215992,1.45632406,94.926,94.811,39.88188483]
[1644663216291,52.756,94.9,94.811,39.88188483]
[1644663216506,28.2931,94.899,94.811,39.88188483]
[1644663216709,30.51384816,94.899,94.811,39.88188483]
[1644663216907,2.22074816,94.898,94.811,39.88188483]
[1644663217109,15.8268,94.89,94.811,39.88188483]
[1644663218609,15.8268,94.87,94.811,39.88188483]
[1644663219414,15.8268,94.87,94.782,23.2571]
[1644663219619,29.1332,94.869,94.782,23.2571]
[1644663219810,15.8308,94.85,94.754,1.48207004]
[1644663220011,23.8612,94.849,94.752,1.48207004]
[1644663220212,24.1112,94.849,94.763,2.38366791]
[1644663220411,24.1112,94.849,94.764,37.59976819]
[1644663220813,24.1112,94.849,94.765,2.63366791]
[1644663221011,5.273,94.848,94.765,2.63366791]
[1644663221211,0.25,94.847,94.765,0.25]
[1644663222612,0.25,94.847,94.766,7.65666791]
[1644663222815,15.827,94.87,94.767,23.3772]
[1644663223012,15.827,94.87,94.77,16.65207004]
[1644663223314,5.273,94.896,94.771,1.73207004]
[1644663223512,24.3922,94.893,94.775,1.48207004]
[1644663223712,24.3922,94.893,94.776,5.522]
[1644663224118,24.3922,94.893,94.777,2.38366791]
[1644663224318,24.3922,94.893,94.778,5.522]
[1644663224718,15.8241,94.89,94.779,2.38366791]
[1644663224919,15.8241,94.89,94.78,24.0793]
[1644663225119,0.25,94.889,94.78,24.3293]
[1644663225323,0.25,94.889,94.781,2.38366791]
[1644663225719,0.25,94.889,94.782,0.25]
[1644663225919,5.272,94.888,94.782,0.25]
[1644663226220,0.25,94.887,94.783,2.38366791]
[1644663226419,5.272,94.886,94.783,2.38366791]
[1644663226620,5.272,94.886,94.784,0.25]
[1644663226822,0.25,94.885,94.784,0.25]
[1644663227023,0.25,94.885,94.785,7.65566791]
[1644663227222,0.25,94.885,94.786,104.95]
[1644663227423,0.25,94.885,94.788,104.7]
[1644663227625,0.25,94.885,94.789,5.272]
[1644663227827,15.8256,94.88,94.79,0.25]
[1644663228025,23.862,94.879,94.79,0.25]
[1644663228226,29.384,94.879,94.79,0.25]
[1644663228826,29.384,94.879,94.79,2.63366791]
[1644663229025,29.384,94.879,94.79,2.38366791]
[1644663229426,29.384,94.879,94.782,5.272]
[1644663229627,15.827,94.87,94.784,0.25]
[1644663229927,0.25,94.869,94.784,0.25]
[1644663230826,0.25,94.869,94.78,24.0793]
[1644663230827,0.25,94.869,94.781,0.25]
[1644663231026,5.272,94.868,94.781,0.25]
[1644663231427,5.272,94.869,94.781,0.25]
[1644663231829,0.25,94.868,94.78,24.0793]
[1644663232029,15.8292,94.86,94.78,24.0793]
[1644663232229,5.523,94.859,94.78,24.0793]
[1644663232430,23.017,94.859,94.78,24.0793]
[1644663232631,5.273,94.858,94.78,24.0793]
[1644663232837,0.25,94.857,94.78,24.0793]
[1644663233030,5.273,94.856,94.78,24.0793]
[1644663233330,0.25,94.855,94.78,24.0793]
[1644663233629,5.273,94.854,94.78,24.0793]
[1644663233829,15.8303,94.85,94.78,24.0793]
[1644663234031,5.273,94.849,94.78,24.0793]
[1644663234230,0.25,94.849,94.78,24.0793]
[1644663235934,5.523,94.849,94.78,24.0793]
[1644663236136,0.25,94.849,94.781,2.38366791]
[1644663236336,0.25,94.858,94.781,2.63366791]
[1644663236737,29.497,94.877,94.782,2.38366791]
[1644663236937,24.224,94.877,94.783,5.272]
[1644663237137,24.224,94.877,94.783,5.522]
[1644663237338,24.224,94.877,94.783,5.272]
[1644663237536,5.272,94.876,94.78,39.2493]
[1644663237738,0.25,94.875,94.781,0.25]
[1644663237940,5.272,94.874,94.78,39.2493]
[1644663238637,5.272,94.876,94.78,39.2493]
[1644663238841,5.272,94.876,94.781,0.25]
[1644663239239,5.272,94.876,94.78,39.2493]
[1644663239441,15.8273,94.87,94.78,24.0793]
[1644663239640,5.272,94.869,94.78,24.0793]
[1644663239839,16.87262415,94.869,94.78,24.0793]
[1644663240042,16.87262415,94.869,94.764,37.59976819]
[1644663240043,2.47062415,94.868,94.764,37.59976819]
[1644663240239,7.74362415,94.868,94.764,37.59976819]
[1644663240447,1.45632406,94.865,94.764,37.59976819]
[1644663240645,1.45632406,94.858,94.764,37.59976819]
[1644663241045,2.47062415,94.857,94.764,37.59976819]
[1644663241249,15.8304,94.85,94.764,37.59976819]
[1644663241450,27.9738,94.849,94.743,24.1869]
[1644663241644,15.17,94.84,94.743,24.1869]
[1644663241847,29.6539,94.839,94.726,1.48207004]
[1644663242144,29.6539,94.839,94.723,1.48207004]
[1644663242346,29.6539,94.839,94.734,42.57647637]
[1644663242547,15.8371,94.82,94.734,42.57647637]
[1644663243165,15.8371,94.82,94.735,0.25]
[1644663243865,0.25,94.819,94.735,0.25]
[1644663245366,0.25,94.819,94.736,2.38366791]
[1644663245367,5.275,94.818,94.736,2.38366791]
[1644663245768,0.25,94.817,94.737,0.25]
[1644663245970,23.8604,94.817,94.737,0.25]
[1644663246170,5.275,94.816,94.737,0.25]
[1644663246571,0.25,94.815,94.738,2.38366791]
[1644663246769,5.275,94.814,94.739,0.25]
[1644663247169,0.25,94.813,94.739,0.25]
[1644663247371,5.275,94.812,94.739,0.25]
[1644663247571,0.25,94.811,94.735,24.2897]
[1644663247972,5.275,94.81,94.735,24.2897]
[1644663248373,0.25,94.809,94.735,24.2897]
[1644663249375,5.275,94.808,94.735,24.2897]
[1644663249675,5.525,94.816,94.735,24.2897]
[1644663249874,0.25,94.807,94.735,24.2897]
[1644663250074,5.275,94.806,94.735,24.2897]
[1644663250275,0.25,94.805,94.735,24.2897]
[1644663251774,0.25,94.814,94.735,24.2897]
[1644663252176,0.25,94.816,94.735,24.2897]
[1644663253578,5.275,94.815,94.735,24.2897]
[1644663253781,15.8372,94.81,94.714,2.38366791]
[1644663253981,5.276,94.809,94.714,2.38366791]
[1644663254179,5.276,94.809,94.685,2.89722781]
[1644663254180,5.276,94.809,94.697,1.48207004]
[1644663254380,26.31882415,94.808,94.689,1.48207004]
[1644663254587,31.59582415,94.808,94.683,1.48207004]
[1644663254880,15.8428,94.79,94.684,41.04694661]
[1644663255082,29.6645,94.789,94.685,22.6649]
[1644663255279,0.25,94.788,94.685,22.6649]
[1644663255480,5.277,94.787,94.685,25.04856791]
[1644663255882,0.25,94.786,94.685,25.04856791]
[1644663256280,5.277,94.785,94.686,0.25]
[1644663256479,5.277,94.785,94.686,2.63366791]
[1644663256679,0.25,94.784,94.687,2.38366791]
[1644663256880,15.8429,94.78,94.687,2.38366791]
[1644663257079,15.8429,94.78,94.688,0.25]
[1644663257278,0.25,94.779,94.688,0.25]
[1644663257880,0.25,94.779,94.689,2.38366791]
[1644663258081,5.277,94.778,94.689,2.38366791]
[1644663258383,0.25,94.777,94.689,2.38366791]
[1644663258982,25.1201,94.777,94.689,2.38366791]
[1644663261184,5.277,94.776,94.689,2.38366791]
[1644663261584,0.25,94.775,94.689,2.38366791]
[1644663261785,5.277,94.774,94.689,2.38366791]
[1644663261985,5.277,94.774,94.69,0.25]
[1644663262187,0.25,94.773,94.69,0.25]
[1644663262385,0.25,94.773,94.691,7.66066791]
[1644663262787,0.25,94.773,94.692,2.63366791]
[1644663263185,0.25,94.775,94.693,2.38366791]
[1644663263988,0.25,94.775,94.694,0.25]
[1644663264389,0.25,94.775,94.695,2.38366791]
[1644663264589,0.25,94.776,94.695,2.38366791]
[1644663264788,0.25,94.776,94.696,0.25]
[1644663265287,0.25,94.776,94.697,2.38366791]
[1644663265687,0.25,94.776,94.698,0.25]
[1644663266091,0.25,94.776,94.698,2.63366791]
[1644663270199,5.277,94.775,94.698,2.63366791]
[1644663270600,0.25,94.774,94.698,2.63366791]
[1644663270899,5.277,94.773,94.698,2.58786791]
[1644663271309,24.8701,94.777,94.698,2.58786791]
[1644663271498,24.8701,94.777,94.698,4.06993795]
[1644663271701,5.277,94.776,94.699,1.48207004]
[1644663271900,24.8701,94.777,94.699,1.48207004]
[1644663272102,24.8701,94.777,94.7,2.38366791]
[1644663272301,0.25,94.776,94.7,4.11573795]
[1644663272502,0.25,94.776,94.701,1.48207004]
[1644663272701,0.25,94.776,94.702,0.25]
[1644663272902,0.25,94.776,94.702,2.63366791]
[1644663273302,0.25,94.776,94.703,2.38366791]
[1644663273705,0.25,94.776,94.704,0.25]
[1644663274119,0.25,94.776,94.705,2.38366791]
[1644663275120,24.0982,94.808,94.705,2.38366791]
[1644663275121,0.25,94.798,94.71,15.17]
[1644663275417,0.25,94.806,94.718,1.48207004]
[1644663275617,0.25,94.806,94.73,15.17]
[1644663275817,0.25,94.806,94.731,23.5437]
[1644663276016,0.25,94.806,94.731,25.92736791]
[1644663276218,24.58712406,94.832,94.731,25.92736791]
[1644663276420,15.8339,94.83,94.732,2.38366791]
[1644663276634,5.275,94.829,94.732,2.38366791]
[1644663276835,5.275,94.829,94.733,0.25]
[1644663277234,5.275,94.829,94.734,2.38366791]
[1644663277434,15.8339,94.83,94.734,2.38366791]
[1644663277634,15.8339,94.83,94.735,0.25]
[1644663278034,15.8339,94.83,94.736,2.38366791]
[1644663278236,0.25,94.829,94.737,0.25]
[1644663278634,0.25,94.829,94.738,2.38366791]
[1644663278834,0.25,94.829,94.739,0.25]
[1644663279237,0.25,94.829,94.74,2.38366791]
[1644663279637,0.25,94.829,94.741,0.25]
[1644663281038,5.275,94.828,94.741,0.25]
[1644663281239,0.25,94.827,94.741,0.25]
[1644663281441,5.275,94.826,94.741,0.25]
[1644663281839,0.25,94.825,94.741,0.25]
[1644663282040,5.275,94.824,94.741,0.25]
[1644663282239,0.25,94.823,94.741,0.25]
[1644663282441,5.275,94.822,94.741,0.25]
[1644663282641,0.25,94.823,94.741,0.25]
[1644663282842,0.25,94.821,94.741,0.25]
[1644663283045,0.25,94.823,94.741,0.25]
[1644663284143,0.25,94.828,94.741,0.25]
[1644663284342,5.275,94.827,94.741,0.25]
[1644663284743,0.25,94.826,94.742,2.38366791]
[1644663285145,0.25,94.826,94.743,0.25]
[1644663285745,0.25,94.828,94.743,0.25]
[1644663286350,0.25,94.828,94.733,0.25]
[1644663286547,5.275,94.827,94.733,0.25]
[1644663286757,0.25,94.826,94.732,0.25]
[1644663286947,5.275,94.825,94.732,0.25]
[1644663287347,15.833,94.82,94.732,0.25]
[1644663287748,0.25,94.819,94.733,2.38366791]
[1644663287949,0.25,94.819,94.734,5.275]
[1644663288149,0.25,94.819,94.734,5.525]
[1644663288850,0.25,94.819,94.74,15.8313]
[1644663289353,0.25,94.819,94.741,0.25]
[1644663290252,0.25,94.819,94.742,2.38366791]
[1644663290451,0.25,94.819,94.743,5.275]
[1644663290651,0.25,94.819,94.743,29.75]
[1644663290851,0.25,94.831,94.744,2.38366791]
[1644663291051,0.25,94.831,94.75,15.17]
[1644663291251,0.25,94.831,94.751,36.65261531]
[1644663291452,5.524,94.831,94.751,36.65261531]
[1644663292853,5.274,94.831,94.751,36.65261531]
[1644663293653,24.9845,94.839,94.752,5.274]
[1644663293855,24.9845,94.839,94.753,0.25]
[1644663294154,24.9845,94.839,94.754,5.274]
[1644663294357,24.9845,94.839,94.755,24.8225]
[1644663294553,24.9845,94.839,94.756,5.274]
[1644663294752,5.524,94.838,94.757,0.25]
[1644663294956,0.25,94.838,94.757,0.25]
[1644663295156,0.25,94.838,94.758,5.274]
[1644663295355,0.25,94.838,94.759,0.25]
[1644663295655,5.274,94.837,94.759,0.25]
[1644663295855,24.9845,94.839,94.77,15.17]
[1644663296057,15.8272,94.86,94.77,15.17]
[1644663296259,15.8272,94.86,94.771,26.30956791]
[1644663296458,29.5513,94.877,94.771,26.30956791]
[1644663296658,24.2783,94.877,94.772,107.08366791]
[1644663296962,24.2783,94.877,94.773,0.25]
[1644663297257,0.25,94.868,94.774,2.38366791]
[1644663297659,0.25,94.868,94.775,0.25]
[1644663297861,0.25,94.868,94.78,30.9945]
[1644663298060,0.25,94.868,94.782,37.86308269]
[1644663298261,0.25,94.868,94.783,5.272]
[1644663298461,7.48488454,94.867,94.782,37.86308269]
[1644663298659,5.272,94.867,94.782,37.86308269]
[1644663298860,0.25,94.866,94.782,37.86308269]
[1644663299063,5.272,94.865,94.783,23.0423]
[1644663299259,0.25,94.864,94.783,23.0423]
[1644663299859,15.8263,94.86,94.783,23.0423]
[1644663300259,0.25,94.859,94.783,23.0423]
[1644663300460,5.523,94.859,94.783,23.0423]
[1644663301461,0.25,94.859,94.783,23.0423]
[1644663302665,5.523,94.859,94.783,23.0423]
[1644663305264,5.523,94.859,94.784,0.25]
[1644663305465,0.25,94.859,94.784,2.63366791]
[1644663305665,0.25,94.859,94.79,15.8231]
[1644663305864,0.25,94.868,94.8,15.17]
[1644663306064,0.25,94.876,94.801,23.8761]
[1644663306266,0.25,94.876,94.801,26.50976791]
[1644663306464,0.25,94.876,94.802,2.38366791]
[1644663306869,0.25,94.876,94.803,0.25]
[1644663307070,0.25,94.876,94.804,5.272]
[1644663307271,0.25,94.876,94.805,0.25]
[1644663307471,0.25,94.876,94.806,5.272]
[1644663307671,0.25,94.893,94.806,5.272]
[1644663307875,1.45632406,94.895,94.81,30.9898]
[1644663308075,24.0366,94.896,94.811,45.38036358]
[1644663308278,1.45632406,94.904,94.811,48.01403149]
[1644663308475,1.45632406,94.916,94.812,24.5474]
[1644663308778,5.269,94.915,94.814,104.7]
[1644663308973,5.269,94.916,94.815,5.269]
[1644663309183,5.269,94.916,94.815,7.90266791]
[1644663309381,0.25,94.915,94.82,15.8179]
[1644663309584,0.25,94.915,94.83,15.17]
[1644663309780,0.25,94.916,94.831,30.0549]
[1644663309983,23.4901,94.917,94.831,30.0549]
[1644663310181,23.4901,94.917,94.831,32.43856791]
[1644663310397,23.4901,94.917,94.832,2.38366791]
[1644663310598,23.4901,94.917,94.833,5.269]
[1644663310799,23.4901,94.917,94.84,15.8144]
[1644663311001,23.4901,94.917,94.841,45.20980846]
[1644663311194,23.4901,94.917,94.841,45.45980846]
[1644663311596,23.4901,94.917,94.842,23.4442]
[1644663311794,23.4901,94.917,94.843,0.25]
[1644663311995,5.269,94.929,94.85,15.8127]
[1644663312200,6.72532406,94.953,94.86,15.17]
[1644663312397,24.2055,94.968,94.861,129.5685]
[1644663312598,24.2055,94.968,94.861,132.20216791]
[1644663312796,24.2055,94.968,94.862,2.38366791]
[1644663312996,24.2055,94.968,94.863,5.267]
[1644663313197,24.2055,94.968,94.863,5.517]
[1644663313399,24.2055,94.968,94.864,2.38366791]
[1644663313596,5.267,94.967,94.865,5.267]
[1644663313795,5.267,94.967,94.87,15.8083]
[1644663313994,5.267,94.967,94.88,15.17]
[1644663314196,5.267,94.967,94.881,23.1448]
[1644663314396,5.267,94.967,94.882,5.267]
[1644663314695,0.25,94.966,94.883,0.25]
[1644663314900,5.267,94.965,94.883,0.25]
[1644663315497,24.2055,94.968,94.89,15.8066]
[1644663315698,5.267,94.967,94.891,0.25]
[1644663315897,24.2055,94.968,94.891,0.25]
[1644663316499,0.25,94.967,94.891,0.25]
[1644663317501,0.25,94.967,94.901,40.93031957]
[1644663318301,5.267,94.995,94.902,0.25]
[1644663318500,5.266,95.001,94.91,15.8031]
[1644663318699,23.9936,95.003,94.92,15.17]
[1644663319102,23.9936,95.003,94.921,0.25]
[1644663319700,0.25,95.002,94.921,0.25]
[1644663320501,23.9936,95.003,94.921,0.25]
[1644663321510,23.9936,95.003,94.93,15.8]
[1644663321704,23.9936,95.003,94.931,41.80381217]
[1644663323106,0.25,95.002,94.931,41.80381217]
[1644663328010,0.25,95.002,94.931,44.18748008]
[1644663328411,0.25,95.002,94.94,15.7986]
[1644663328712,0.25,95.002,94.941,0.25]
[1644663331815,0.25,95.002,94.941,2.63366791]
[1644663332317,0.25,95.004,94.941,2.63366791]
[1644663333219,5.514,95.017,94.941,2.63366791]
[1644663333415,0.25,95.017,94.95,15.7969]
[1644663333616,5.514,95.017,94.95,30.9669]
[1644663334419,5.264,95.017,94.951,2.38366791]
[1644663334618,5.264,95.038,94.951,2.63366791]
[1644663334818,22.5707,95.037,94.96,15.7953]
[1644663335027,5.263,95.036,94.961,47.23062725]
[1644663335821,0.25,95.035,94.961,47.23062725]
[1644663336321,0.25,95.036,94.961,47.23062725]
[1644663336720,5.263,95.035,94.961,47.23062725]
[1644663336921,0.25,95.036,94.961,47.23062725]
[1644663337122,0.25,95.034,94.961,47.23062725]
[1644663337322,0.25,95.036,94.961,47.23062725]
[1644663338523,0.25,95.036,94.962,2.38366791]
[1644663338725,5.263,95.035,94.962,2.38366791]
[1644663339022,0.25,95.036,94.962,2.38366791]
[1644663339222,5.263,95.035,94.962,2.38366791]
[1644663339423,22.5707,95.037,94.962,2.38366791]
[1644663339625,22.5707,95.037,94.97,15.7932]
[1644663339823,5.261,95.036,94.971,0.25]
[1644663340828,0.25,95.035,94.972,2.38366791]
[1644663341128,0.25,95.035,94.98,15.7916]
[1644663341326,0.25,95.043,94.981,0.25]
[1644663341528,24.8205,95.044,94.981,2.63366791]
[1644663341729,24.8205,95.044,94.982,2.38366791]
[1644663342229,24.8205,95.044,94.983,0.25]
[1644663342430,1.45632406,95.065,94.991,38.55790802]
[1644663342629,1.45632406,95.068,94.991,38.55790802]
[1644663342929,1.45632406,95.073,94.992,2.63366791]
[1644663343131,5.261,95.072,94.992,2.63366791]
[1644663343328,5.261,95.077,94.992,2.63366791]
[1644663343629,5.261,95.075,94.992,2.63366791]
[1644663343828,0.25,95.074,94.992,2.63366791]
[1644663344056,5.261,95.073,94.992,2.63366791]
[1644663344327,0.25,95.072,94.992,2.63366791]
[1644663344729,5.261,95.071,94.992,2.63366791]
[1644663345130,0.25,95.07,94.992,2.63366791]
[1644663345329,5.261,95.069,94.992,2.63366791]
[1644663345735,0.25,95.068,94.993,2.38366791]
[1644663346135,0.25,95.068,94.994,0.25]
[1644663346332,0.25,95.068,94.994,23.7819]
[1644663346534,0.25,95.068,94.995,2.38366791]
[1644663346733,0.25,95.068,94.996,0.25]
[1644663346933,0.25,95.072,94.996,0.25]
[1644663347134,5.261,95.071,94.996,0.25]
[1644663347334,0.25,95.07,94.996,0.25]
[1644663347532,0.25,95.076,94.996,0.25]
[1644663347935,0.25,95.076,94.995,5.511]
[1644663348132,1.45632406,95.074,94.997,2.38366791]
[1644663348337,23.7932,95.078,95.0,30.9577]
[1644663348734,23.7932,95.078,95.001,2.63366791]
[1644663349134,23.7932,95.078,95.002,2.38366791]
[1644663349337,23.7932,95.078,95.003,5.51]
[1644663349935,23.7932,95.078,95.004,2.38366791]
[1644663350237,0.25,95.077,95.005,0.25]
[1644663350435,0.25,95.077,95.003,0.25]
[1644663351435,0.25,95.077,95.0,30.9577]
[1644663351436,0.25,95.077,95.004,2.38366791]
[1644663351638,0.25,95.077,95.005,24.7612]
[1644663351836,0.25,95.077,95.005,25.0112]
[1644663352837,5.26,95.089,95.005,25.0112]
[1644663352838,1.45632406,95.084,95.006,2.38366791]
[1644663353037,23.3784,95.103,95.02,15.17]
[1644663353338,24.7151,95.117,95.023,104.7]
[1644663353738,24.7151,95.117,95.024,7.89266791]
[1644663354136,24.7151,95.117,95.025,2.38366791]
[1644663354337,24.7151,95.117,95.041,34.44349723]
[1644663354536,24.7151,95.117,95.042,28.3006]
[1644663354737,0.25,95.116,95.042,30.93426791]
[1644663355348,0.25,95.116,95.042,28.3006]
[1644663355741,23.8754,95.116,95.042,5.258]
[1644663355939,15.7848,95.11,95.042,5.258]
[1644663356144,15.7848,95.11,95.041,34.44349723]
[1644663356339,5.508,95.109,95.041,34.44349723]
[1644663358855,15.7867,95.1,95.041,34.44349723]